bitfinex-derivatives/quotes_SOLF0:USTF0_20241017
["timestamp","ask_amount","ask_price","bid_price","bid_amount"]
[1729158865853,13.2953,153.15,153.12,1.3346]
[1729158866550,3.2655,153.14,153.1,4.52]
[1729158866956,10.03,153.15,153.09,78.40510273]
[1729158867154,10.03,153.15,153.1,10.03]
[1729158867449,10.03,153.15,153.12,3.2657]
[1729158867754,13.2954,153.14,153.09,4.52]
[1729158867946,13.2954,153.14,153.09,14.55]
[1729158868148,13.2954,153.14,153.11,3.2659]
[1729158871454,3.2654,153.14,153.11,3.2659]
[1729158877461,13.2954,153.15,153.12,3.2658]
[1729158878156,3.2654,153.14,153.12,3.2658]
[1729158878559,1.382,153.21,153.15,3.2652]
[1729158878874,3.2647,153.18,153.15,3.2652]
[1729158879366,1.4321,153.22,153.17,10.03]
[1729158879659,11.4621,153.22,153.17,13.33568485]
[1729158880562,3.2641,153.21,153.18,3.2644]
[1729158880963,11.4621,153.22,153.17,13.33568485]
[1729158881265,3.2642,153.2,153.17,16.60028485]
[1729158882565,3.2641,153.21,153.18,13.2945]
[1729158883258,13.2939,153.22,153.18,10.03]
[1729158883855,7.2782,153.26,153.21,10.03]
[1729158884056,5.9299,153.26,153.22,10.03]
[1729158884256,5.9299,153.26,153.22,13.24033305]
[1729158884855,3.2633,153.24,153.22,16.50403305]
[1729158886159,3.2633,153.24,153.22,6.47403305]
[1729158886561,15.9599,153.26,153.22,3.21033305]
[1729158886867,13.2935,153.23,153.22,3.21033305]
[1729158887064,13.2935,153.23,153.2,3.2641]
[1729158887459,13.2935,153.23,153.2,6.57121816]
[1729158887767,13.2935,153.23,153.2,3.2641]
[1729158888163,13.2935,153.23,153.2,6.46967667]
[1729158890262,3.2635,153.23,153.2,16.49967667]
[1729158894672,3.2635,153.23,153.2,13.23557667]
[1729158894867,3.2635,153.23,153.21,3.2639]
[1729158897274,7.7831,153.25,153.22,10.03]
[1729158897469,4.52,153.25,153.23,10.03]
[1729158898472,7.7831,153.25,153.23,13.2934]
[1729158900275,4.52,153.25,153.23,13.2934]
[1729158900867,3.2629,153.26,153.23,10.03]
[1729158901065,3.2629,153.26,153.24,13.2933]
[1729158901467,3.2629,153.26,153.24,10.03]
[1729158901870,10.03,153.26,153.21,1.3757]
[1729158902175,4.52,153.29,153.19,4.52]
[1729158902176,10.03,153.25,153.2,10.03]
[1729158902374,10.03,153.23,153.2,3.30907716]
[1729158902668,13.2936,153.23,153.2,3.2641]
[1729158902874,13.2936,153.23,153.2,6.57317716]
[1729158903074,13.2936,153.23,153.2,3.2641]
[1729158903274,13.2936,153.23,153.21,3.2639]
[1729158905379,3.2641,153.21,153.19,6.60830479]
[1729158906972,3.2641,153.21,153.19,16.63830479]
[1729158907384,3.2636,153.23,153.2,13.2941]
[1729158907780,14.55,153.25,153.2,13.2941]
[1729158908079,3.2637,153.23,153.2,16.50151858]
[1729158910582,14.55,153.25,153.2,16.50151858]
[1729158910787,3.2637,153.22,153.2,16.50151858]
[1729158915400,3.2637,153.22,153.2,6.47151858]
[1729158916087,13.2939,153.21,153.2,3.20741858]
[1729158916295,13.2939,153.21,153.17,1.4598]
[1729158916498,10.03,153.21,153.17,1.4598]
[1729158916698,10.03,153.21,153.17,14.67534165]
[1729158916895,10.03,153.21,153.17,11.4898]
[1729158917398,3.2642,153.2,153.18,3.2645]
[1729158918190,10.03,153.2,153.17,13.34484408]
[1729158918400,3.2645,153.19,153.17,3.31484408]
[1729158918703,3.2645,153.19,153.16,3.265]
[1729158919099,3.2645,153.19,153.16,6.53313844]
[1729158919295,3.2645,153.19,153.16,3.265]
[1729158919694,13.2945,153.19,153.16,3.265]
[1729158919901,13.2945,153.19,153.16,6.55011917]
[1729158920102,13.2945,153.19,153.16,3.265]
[1729158920297,10.03,153.19,153.15,10.03]
[1729158920505,10.03,153.18,153.15,3.2651]
[1729158921403,3.2648,153.17,153.15,3.2651]
[1729158921602,10.03,153.18,153.15,3.2651]
[1729158922297,3.2647,153.18,153.15,3.2651]
[1729158923491,3.2647,153.18,153.14,10.03]
[1729158923692,3.2647,153.18,153.16,3.265]
[1729158923903,3.2647,153.18,153.16,6.53944405]
[1729158926709,4.52,153.19,153.16,6.53944405]
[1729158926907,7.7845,153.19,153.16,6.53944405]
[1729158928006,3.2646,153.18,153.16,6.53944405]
[1729158928912,10.04,153.2,153.16,6.53944405]
[1729158928913,3.2643,153.2,153.17,13.3046]
[1729158929113,2.7758,153.27,153.19,10.04]
[1729158929314,10.04,153.24,153.19,10.04]
[1729158929518,3.2638,153.22,153.19,13.3042]
[1729158929907,3.2638,153.22,153.19,16.56459984]
[1729158930108,3.2639,153.21,153.19,16.56459984]
[1729158930704,10.04,153.24,153.19,16.56459984]
[1729158931013,3.2639,153.22,153.19,16.56459984]
[1729158933418,13.2939,153.22,153.19,6.52459984]
[1729158934118,10.03,153.24,153.19,13.29039984]
[1729158934301,4.52,153.24,153.21,13.2939]
[1729158934513,4.52,153.24,153.21,10.03]
[1729158934712,5.8841,153.26,153.22,10.03]
[1729158935507,3.2631,153.25,153.21,10.03]
[1729158936414,3.2631,153.25,153.23,3.2635]
[1729158939614,3.2635,153.23,153.21,3.2638]
[1729158939819,13.2935,153.23,153.19,1.4604]
[1729158940320,10.03,153.23,153.19,1.4604]
[1729158940522,10.03,153.23,153.18,13.2929136]
[1729158940913,14.55,153.23,153.18,13.2929136]
[1729158941316,3.2638,153.22,153.19,3.2643]
[1729158942416,14.55,153.23,153.19,3.2643]
[1729158942614,3.264,153.21,153.19,3.2643]
[1729158943619,3.264,153.21,153.18,6.5274136]
[1729158944622,3.264,153.21,153.19,3.2643]
[1729158963137,4.52,153.23,153.18,3.2629136]
[1729158963138,3.2644,153.19,153.18,3.2629136]
[1729158963339,10.03,153.19,153.14,1.4381]
[1729158963639,10.03,153.15,153.14,3.2654]
[1729158964944,3.265,153.17,153.15,3.2652]
[1729158964945,10.03,153.16,153.15,3.2652]
[1729158966233,13.295,153.17,153.15,3.2652]
[1729158966434,3.265,153.17,153.15,3.2652]
[1729158970844,7.7845,153.19,153.16,3.2649]
[1729158971145,1.4334,153.21,153.16,3.3468402]
[1729158971349,14.55,153.2,153.15,10.03]
[1729158971647,7.7842,153.2,153.17,3.2647]
[1729158971849,17.8142,153.2,153.17,6.57691884]
[1729158972147,17.8142,153.2,153.17,3.2647]
[1729158972648,7.7842,153.2,153.17,6.49069206]
[1729158972842,17.8142,153.2,153.17,6.49069206]
[1729158973252,3.2644,153.19,153.17,6.49069206]
[1729158975647,13.2944,153.19,153.17,6.49069206]
[1729158978742,7.7842,153.2,153.17,3.22599206]
[1729158978953,7.7842,153.2,153.18,3.2646]
[1729158980852,17.8142,153.2,153.18,3.2646]
[1729158981057,14.55,153.2,153.16,13.28582813]
[1729158981252,14.55,153.2,153.17,3.2647]
[1729158981652,17.8143,153.2,153.17,3.2647]
[1729158982348,3.2646,153.18,153.16,6.52072813]
[1729158982548,3.2646,153.18,153.16,3.2649]
[1729158983056,3.2646,153.18,153.16,6.52378048]
[1729158983256,10.03,153.19,153.16,6.52378048]
[1729158983460,13.2944,153.19,153.16,6.52378048]
[1729158987464,4.52,153.2,153.12,3.2657]
[1729158987465,3.2654,153.15,153.12,3.2657]
[1729158987657,13.2954,153.15,153.12,3.2657]
[1729158989551,3.2654,153.15,153.12,3.2657]
[1729158989756,3.2654,153.15,153.13,3.2656]
[1729158990768,7.7849,153.17,153.15,3.2652]
[1729158991059,10.03,153.18,153.15,3.2652]
[1729158991660,13.2947,153.18,153.15,3.2652]
[1729158992271,10.03,153.18,153.16,3.265]
[1729158992466,10.03,153.18,153.16,6.58015839]
[1729158992658,10.03,153.18,153.16,3.265]
[1729158993253,10.03,153.18,153.16,6.537045]
[1729158994668,7.7845,153.19,153.16,6.537045]
[1729158994975,17.8145,153.19,153.16,6.537045]
[1729158995177,3.2645,153.19,153.16,6.537045]
[1729158995375,4.52,153.2,153.17,10.03]
[1729158995571,7.7843,153.2,153.17,13.2946]
[1729158995870,3.2643,153.2,153.17,10.03]
[1729158996064,3.2643,153.2,153.17,13.31957054]
[1729158997369,3.2643,153.2,153.18,3.2646]
[1729158997768,13.2943,153.2,153.18,3.2646]
[1729159000675,13.2943,153.2,153.17,6.55427054]
[1729159000874,13.2946,153.18,153.17,3.28957054]
[1729159001073,10.03,153.18,153.11,14.55]
[1729159001276,10.03,153.16,153.11,14.55]
[1729159001986,10.03,153.16,153.15,3.2652]
[1729159011394,4.52,153.19,153.13,10.03]
[1729159011590,10.03,153.2,153.15,10.03]
[1729159011893,10.03,153.2,153.15,13.23442913]
[1729159012391,3.2645,153.19,153.16,3.2649]
[1729159013494,13.2945,153.19,153.16,3.2649]
[1729159014390,3.2645,153.19,153.17,3.2648]
[1729159014592,3.2643,153.2,153.16,10.03]
[1729159014994,17.8141,153.21,153.18,3.2645]
[1729159015592,3.2641,153.2,153.18,3.2645]
[1729159020293,10.03,153.2,153.15,4.59692913]
[1729159020599,10.03,153.18,153.15,6.46952913]
[1729159021193,10.03,153.18,153.15,3.20442913]
[1729159021393,13.2946,153.18,153.16,3.265]
[1729159021594,13.2946,153.18,153.16,6.49460523]
[1729159021799,10.03,153.18,153.16,6.49460523]
[1729159024598,13.2945,153.19,153.16,6.49460523]
[1729159031110,3.2647,153.18,153.16,6.49460523]
[1729159031307,10.03,153.17,153.16,6.49460523]
[1729159031809,13.2948,153.17,153.16,3.22960523]
[1729159032113,13.2948,153.17,153.14,3.2653]
[1729159032295,10.03,153.16,153.12,4.52]
[1729159032606,10.03,153.16,153.12,7.78606583]
[1729159034903,13.2951,153.16,153.12,7.78606583]
[1729159035799,13.2951,153.16,153.12,17.81606583]
[1729159036004,13.2951,153.16,153.12,13.29606583]
[1729159036408,13.2951,153.16,153.14,3.2654]
[1729159038007,4.52,153.18,153.16,3.2649]
[1729159038201,14.55,153.18,153.16,3.2649]
[1729159039409,7.7846,153.18,153.16,3.2649]
[1729159039708,17.8146,153.18,153.16,3.2649]
[1729159040410,17.8146,153.18,153.15,3.265]
[1729159043713,17.8146,153.18,153.16,3.265]
[1729159049122,3.2644,153.19,153.17,3.2648]
[1729159049727,13.2944,153.19,153.16,3.2649]
[1729159050421,13.2944,153.19,153.16,6.52355372]
[1729159051027,13.2944,153.19,153.16,3.25865372]
[1729159051219,13.2944,153.19,153.17,3.2648]
[1729159052031,13.2944,153.19,153.18,3.30122487]
[1729159057228,10.03,153.19,153.15,10.03]
[1729159057430,3.2646,153.18,153.16,3.265]
[1729159060334,14.55,153.21,153.16,10.03]
[1729159061436,13.2942,153.2,153.18,3.2646]
[1729159061936,10.03,153.2,153.17,3.2647]
[1729159062135,10.03,153.2,153.16,10.03]
[1729159062528,10.03,153.2,153.18,3.2645]
[1729159062723,10.03,153.2,153.16,10.03]
[1729159062929,3.2644,153.19,153.15,13.30031171]
[1729159063430,13.2944,153.19,153.16,3.265]
[1729159064335,10.03,153.17,153.15,6.53541171]
[1729159064534,10.03,153.16,153.15,3.2651]
[1729159064737,10.03,153.16,153.15,3.31734306]
[1729159064928,10.03,153.16,153.13,3.2656]
[1729159065236,10.03,153.16,153.13,6.58533102]
[1729159065432,10.03,153.16,153.13,3.31973102]
[1729159065737,10.03,153.16,153.14,3.2654]
[1729159065929,10.03,153.16,153.14,6.52209402]
[1729159068434,3.265,153.17,153.14,6.52209402]
[1729159068638,13.295,153.17,153.14,6.52209402]
[1729159077344,10.03,153.15,153.14,3.25669402]
[1729159077551,14.55,153.15,153.11,3.2659]
[1729159077741,10.03,153.12,153.11,6.46444944]
[1729159082150,10.03,153.13,153.11,6.46444944]
[1729159085655,17.8153,153.15,153.12,3.2659]
[1729159086556,17.8153,153.15,153.12,6.51548804]
[1729159088868,17.8153,153.15,153.12,3.24958804]
[1729159088869,14.55,153.15,153.12,3.24958804]
[1729159089058,10.03,153.15,153.13,3.2655]
[1729159089261,10.03,153.15,153.14,3.2971903]
[1729159089665,10.03,153.16,153.14,3.2654]
[1729159089969,10.03,153.16,153.15,3.29457659]
[1729159095574,10.03,153.16,153.12,10.03]
[1729159095870,10.03,153.16,153.15,3.2652]
[1729159096162,14.55,153.17,153.15,3.2652]
[1729159097575,17.8148,153.17,153.15,3.2652]
[1729159099966,10.03,153.16,153.12,3.22260533]
[1729159100165,13.295,153.16,153.13,3.2654]
[1729159100369,13.295,153.16,153.13,6.57315574]
[1729159100573,13.295,153.16,153.13,3.2654]
[1729159101175,3.2652,153.15,153.14,3.33921951]
[1729159101376,13.2952,153.15,153.12,3.2658]
[1729159101673,3.2652,153.15,153.12,3.2658]
[1729159101872,13.2952,153.15,153.12,6.54687796]
[1729159102169,13.2952,153.15,153.12,3.2658]
[1729159102373,10.03,153.14,153.12,3.2658]
[1729159102575,10.03,153.14,153.12,6.45541934]
[1729159104380,13.2952,153.15,153.12,6.45541934]
[1729159107578,3.2652,153.16,153.14,3.2654]
[1729159107880,10.03,153.15,153.14,3.2654]
[1729159108076,10.03,153.15,153.14,6.47940048]
[1729159119685,10.03,153.15,153.14,3.21400048]
[1729159119891,13.2952,153.15,153.09,2.7434]
[1729159120095,10.03,153.15,153.09,12.7734]
[1729159120995,10.03,153.15,153.13,3.2656]
[1729159121184,10.03,153.15,153.14,3.28205787]
[1729159121991,3.2651,153.16,153.14,3.28205787]
[1729159121992,4.52,153.17,153.14,3.28205787]
[1729159122290,10.03,153.16,153.14,3.2654]
[1729159122486,10.03,153.16,153.15,3.18471977]
[1729159123588,10.03,153.16,153.11,10.03]
[1729159123796,10.03,153.14,153.11,3.34052606]
[1729159123996,10.03,153.14,153.1,4.5]
[1729159124494,10.03,153.14,153.1,7.78630416]
[1729159125095,10.03,153.14,153.12,3.2657]
[1729159130600,13.2953,153.15,153.12,3.2658]
[1729159137208,10.03,153.14,153.12,3.2658]
[1729159138000,13.2957,153.13,153.1,6.55240416]
[1729159138300,127.70449025,153.2,153.08,189.51423]
[1729159138301,10.03,153.12,153.08,189.51423]
[1729159139311,10.03,153.12,153.1,3.2661]
[1729159139506,10.03,153.12,153.1,6.52821838]
[1729159141507,10.03,153.11,153.1,6.52821838]
[1729159144306,3.2657,153.13,153.1,6.52821838]
[1729159144504,10.03,153.12,153.1,6.52821838]
[1729159145014,10.03,153.11,153.1,6.52821838]
[1729159145406,4.5,153.14,153.1,6.52821838]
[1729159145613,3.2657,153.13,153.1,6.52821838]
[1729159145811,10.03,153.12,153.1,6.52821838]
[1729159146316,10.03,153.11,153.1,6.52821838]
[1729159146814,10.03,153.12,153.1,3.2661]
[1729159147009,10.03,153.12,153.1,6.47648307]
[1729159150510,3.2657,153.13,153.1,6.47648307]
[1729159150708,10.03,153.12,153.1,6.47648307]
[1729159151012,10.03,153.12,153.11,3.2661]
[1729159151809,10.03,153.12,153.11,6.52189761]
[1729159152008,10.03,153.12,153.11,3.25579761]
[1729159152309,10.03,153.12,153.1,3.2662]
[1729159152723,10.03,153.12,153.1,3.19229515]
[1729159153015,10.03,153.12,153.11,3.2661]
[1729159153212,10.03,153.12,153.11,6.57602322]
[1729159157907,4.52,153.14,153.12,3.2657]
[1729159158114,10.03,153.13,153.12,3.2657]
[1729159158317,10.03,153.13,153.08,189.51423]
[1729159158516,10.03,153.13,153.08,192.70152615]
[1729159159515,10.03,153.13,153.12,3.2659]
[1729159161019,10.03,153.13,153.08,192.70152615]
[1729159161220,10.03,153.12,153.11,3.266]
[1729159168020,4.52,153.14,153.08,192.70152615]
[1729159168224,10.03,153.13,153.12,3.2657]
[1729159172427,10.03,153.13,153.08,192.70152615]
[1729159172617,13.2957,153.13,153.1,3.2661]
[1729159173628,10.03,153.12,153.1,3.2661]
[1729159183532,3.2657,153.13,153.11,3.266]
[1729159183834,10.03,153.12,153.11,3.266]
[1729159188337,3.2657,153.13,153.11,3.266]
[1729159188539,10.03,153.12,153.11,3.266]
[1729159191635,3.2657,153.13,153.11,3.266]
[1729159191936,10.03,153.12,153.11,3.266]
[1729159204158,10.03,153.13,153.11,3.266]
[1729159205958,7.7855,153.14,153.11,3.266]
[1729159206159,4.7037,153.16,153.13,3.2655]
[1729159206355,10.03,153.15,153.13,3.2655]
[1729159206757,10.03,153.14,153.13,3.2655]
[1729159206960,10.03,153.14,153.12,3.2658]
[1729159207163,10.03,153.13,153.08,197.20152615]
[1729159207354,10.03,153.1,153.08,192.70152615]
[1729159208450,10.03,153.1,153.09,3.2665]
[1729159215764,10.03,153.1,153.08,192.70152615]
[1729159216068,10.03,153.1,153.08,195.96812615]
[1729159217068,10.03,153.09,153.08,195.96812615]
[1729159220672,3.2661,153.11,153.08,195.96812615]
[1729159220870,10.03,153.09,153.08,195.96812615]
[1729159225474,10.03,153.09,153.08,192.70152615]
[1729159231275,7.7664,153.1,153.08,192.70152615]
[1729159231276,4.5,153.1,153.08,192.70152615]
[1729159231473,10.03,153.11,153.1,3.2662]
[1729159231875,4.5,153.12,153.08,192.70152615]
[1729159232176,10.03,153.12,153.11,3.2661]
[1729159236883,10.03,153.12,153.08,192.70152615]
[1729159237091,10.03,153.12,153.1,3.2662]
[1729159237585,10.03,153.11,153.09,3.2664]
[1729159238682,10.03,153.1,153.09,3.2664]
[1729159238878,13.2964,153.1,153.08,192.70152615]
[1729159239078,10.03,153.09,153.08,192.70152615]
[1729159240585,4.5,153.13,153.08,192.70152615]
[1729159240788,10.03,153.09,153.08,195.96822615]
[1729159241177,10.03,153.09,153.08,192.70152615]
[1729159243578,13.2965,153.09,153.08,192.70152615]
[1729159248491,10.03,153.09,153.08,195.96822615]
[1729159250379,4.5,153.1,153.09,3.2665]
[1729159250686,14.53,153.1,153.09,3.2665]
[1729159251390,10.03,153.1,153.09,3.2665]
[1729159255190,1.3342,153.18,153.09,10.03]
[1729159255385,4.5,153.22,153.13,10.03]
[1729159255696,10.03,153.18,153.14,10.03]
[1729159255991,10.03,153.18,153.15,3.2651]
[1729159256188,10.03,153.18,153.13,10.03]
[1729159256394,10.03,153.18,153.16,3.2649]
[1729159256587,3.2642,153.2,153.17,3.19168981]
[1729159256588,10.03,153.19,153.17,3.19168981]
[1729159257696,10.03,153.18,153.15,3.2651]
[1729159258998,10.03,153.19,153.16,3.2649]
[1729159259196,10.03,153.19,153.17,3.24570367]
[1729159259397,10.03,153.19,153.16,3.2649]
[1729159260403,10.03,153.17,153.13,3.2655]
[1729159260595,10.03,153.14,153.09,4.70006181]
[1729159260790,10.03,153.12,153.09,4.70006181]
[1729159260997,10.03,153.12,153.1,3.2661]
[1729159262697,7.7656,153.14,153.12,3.2659]
[1729159262698,14.53,153.14,153.12,3.2659]
[1729159262901,4.5,153.14,153.12,3.2659]
[1729159263099,4.5,153.14,153.1,10.03]
[1729159263702,10.03,153.15,153.1,10.03]
[1729159264307,10.03,153.15,153.13,3.2656]
[1729159267897,7.7649,153.17,153.14,3.2654]
[1729159268094,10.03,153.16,153.14,3.2654]
[1729159268297,10.03,153.15,153.1,10.03]
[1729159268492,10.03,153.15,153.13,3.2655]
[1729159269303,10.03,153.15,153.14,3.2654]
[1729159269503,4.5,153.17,153.1,10.03]
[1729159269700,4.5,153.17,153.11,10.03]
[1729159269903,10.03,153.16,153.11,10.03]
[1729159270602,10.03,153.16,153.15,3.2652]
[1729159270798,10.03,153.16,153.09,9.20006181]
[1729159270799,10.03,153.16,153.1,10.03]
[1729159271003,10.03,153.15,153.09,4.70006181]
[1729159271204,10.03,153.15,153.13,3.2655]
[1729159273210,10.03,153.15,153.12,3.2658]
[1729159273508,10.03,153.15,153.11,10.03]
[1729159274403,7.7649,153.17,153.13,3.2655]
[1729159274604,10.03,153.15,153.13,3.2655]
[1729159275010,10.03,153.15,153.14,3.2654]
[1729159276815,7.7649,153.17,153.14,3.2654]
[1729159277001,3.2641,153.21,153.15,3.2651]
[1729159277210,10.03,153.17,153.15,3.2651]
[1729159277509,10.03,153.18,153.13,10.03]
[1729159277707,14.71,153.19,153.17,3.2648]
[1729159277903,14.71,153.19,153.17,6.58638651]
[1729159278110,14.71,153.19,153.17,3.2648]
[1729159278517,10.03,153.18,153.17,3.27389261]
[1729159278814,10.03,153.18,153.16,3.2649]
[1729159279009,10.03,153.18,153.17,3.18735364]
[1729159280807,10.03,153.18,153.14,1.4388]
[1729159281011,10.03,153.16,153.12,4.68]
[1729159281718,10.03,153.16,153.14,3.2653]
[1729159281910,10.03,153.16,153.12,4.68]
[1729159282111,10.03,153.17,153.12,14.71]
[1729159285415,10.03,153.17,153.14,3.2652]
[1729159285618,10.03,153.17,153.12,14.71]
[1729159285818,10.03,153.17,153.12,10.03]
[1729159287922,10.03,153.17,153.15,3.2652]
[1729159288324,10.03,153.16,153.15,3.2652]
[1729159289727,4.68,153.19,153.13,10.03]
[1729159289927,10.03,153.18,153.14,10.03]
[1729159290226,14.71,153.19,153.14,10.03]
[1729159290421,14.71,153.19,153.15,3.2651]
[1729159290623,14.71,153.19,153.14,10.03]
[1729159291222,4.68,153.19,153.14,10.03]
[1729159291419,14.71,153.19,153.16,3.2648]
[1729159291624,14.71,153.19,153.17,3.20802227]
[1729159291819,14.71,153.19,153.14,10.03]
[1729159292025,14.71,153.19,153.15,3.2651]
[1729159292331,14.71,153.19,153.14,10.03]
[1729159292829,14.71,153.19,153.17,3.2647]
[1729159293028,14.71,153.19,153.17,6.44953017]
[1729159293731,4.68,153.19,153.18,3.2646]
[1729159293929,10.03,153.19,153.18,3.2646]
[1729159294531,10.03,153.19,153.18,6.57453683]
[1729159294720,10.03,153.19,153.18,3.2646]
[1729159295325,7.9443,153.2,153.18,6.52641994]
[1729159295533,10.03,153.2,153.18,6.52641994]
[1729159295934,10.03,153.2,153.19,3.2644]
[1729159296629,6.5226,153.34,153.19,10.03]
[1729159296827,6.5226,153.34,153.15,1.353]
[1729159296828,10.03,153.26,153.15,1.353]
[1729159297023,10.03,153.24,153.18,10.03]
[1729159297225,10.03,153.21,153.16,1.3584]
[1729159297426,2.7831,153.3,153.15,14.65690438]
[1729159297427,10.03,153.2,153.15,14.65690438]
[1729159297624,2.7831,153.3,153.15,4.62690438]
[1729159297625,10.03,153.19,153.15,4.62690438]
[1729159298836,10.03,153.19,153.17,3.2647]
[1729159300734,2.7831,153.3,153.18,10.03]
[1729159300948,10.03,153.26,153.21,10.03]
[1729159301444,10.03,153.24,153.16,6.6294]
[1729159301634,10.03,153.24,153.18,10.03]
[1729159302045,10.03,153.24,153.2,3.264]
[1729159304554,10.03,153.24,153.21,3.2639]
[1729159306561,10.03,153.24,153.2,3.2641]
[1729159306753,10.03,153.22,153.17,10.03]
[1729159307354,10.03,153.22,153.18,10.03]
[1729159308450,10.03,153.22,153.19,3.2642]
[1729159308959,10.03,153.21,153.19,3.2642]
[1729159309162,10.03,153.22,153.19,3.2642]
[1729159309853,10.03,153.22,153.18,10.03]
[1729159310059,5.22,153.25,153.19,10.03]
[1729159310262,10.03,153.24,153.19,10.03]
[1729159310761,10.03,153.24,153.21,3.2638]
[1729159310964,15.25,153.25,153.2,10.03]
[1729159311355,15.25,153.25,153.22,3.2636]
[1729159312062,15.25,153.25,153.23,3.2634]
[1729159312255,15.25,153.25,153.23,3.20664838]
[1729159312454,15.25,153.25,153.2,10.03]
[1729159312664,13.2928,153.27,153.24,3.2632]
[1729159312869,18.5128,153.27,153.24,6.57238276]
[1729159313069,18.5128,153.27,153.24,3.2632]
[1729159313566,18.5128,153.27,153.24,6.57107659]
[1729159313754,18.5128,153.27,153.24,3.2632]
[1729159314353,18.5128,153.27,153.24,6.56858057]
[1729159315865,15.25,153.27,153.24,3.30538057]
[1729159316066,18.5127,153.27,153.25,3.263]
[1729159316560,10.03,153.26,153.24,6.48043709]
[1729159316865,10.03,153.26,153.24,3.2632]
[1729159317268,10.03,153.26,153.24,6.53027168]
[1729159317765,10.03,153.26,153.25,3.2631]
[1729159318971,15.25,153.27,153.25,3.2631]
[1729159320674,10.03,153.26,153.25,3.2631]
[1729159320869,2.7831,153.3,153.24,13.26932376]
[1729159321075,18.5124,153.29,153.26,3.2627]
[1729159321274,10.03,153.28,153.26,3.2627]
[1729159321768,13.2925,153.28,153.26,3.2627]
[1729159321974,10.03,153.27,153.25,3.263]
[1729159325975,5.22,153.29,153.24,3.23932376]
[1729159325976,10.03,153.26,153.24,3.23932376]
[1729159326276,10.03,153.25,153.18,5.22]
[1729159326483,10.03,153.22,153.18,15.25]
[1729159326972,10.03,153.22,153.21,3.2638]
[1729159327367,13.2938,153.22,153.19,3.2642]
[1729159327571,10.03,153.21,153.19,3.2642]
[1729159327772,10.03,153.21,153.16,17.923]
[1729159328580,10.03,153.22,153.19,3.2642]
[1729159332273,13.2936,153.23,153.19,13.2942]
[1729159332582,13.2936,153.23,153.19,10.03]
[1729159332884,13.2936,153.23,153.2,3.264]
[1729159334381,15.25,153.25,153.22,3.2636]
[1729159335383,18.5133,153.25,153.22,3.2636]
[1729159342386,13.2933,153.25,153.22,3.2636]
[1729159344384,2.7831,153.3,153.23,3.2634]
[1729159344385,3.263,153.26,153.23,3.2634]
[1729159344688,10.03,153.26,153.23,6.50619767]
[1729159344887,3.2631,153.26,153.23,6.50619767]
[1729159345088,13.2931,153.26,153.23,6.50619767]
[1729159345686,3.2622,153.3,153.25,10.03]
[1729159345885,10.03,153.32,153.27,10.03]
[1729159346284,132.88027241,153.33,153.27,10.03]
[1729159346490,142.91027241,153.33,153.27,10.03]
[1729159347489,3.2618,153.31,153.28,3.2624]
[1729159350491,3.2618,153.31,153.28,13.2924]